bitfinex-derivatives/quotes_BNBF0:USTF0_20250810
["timestamp","ask_amount","ask_price","bid_price","bid_amount"]
[1754820176488,1.67777077,802.33,801.18,0.69883005]
[1754820176789,1.67777077,802.33,801.16,0.5]
[1754820176989,1.67777077,802.33,801.17,0.69883076]
[1754820177187,1.67777077,802.33,801.18,0.69883076]
[1754820177390,1.67777077,802.33,801.16,0.5]
[1754820177686,1.67777077,802.32,801.17,0.69893744]
[1754820177889,1.67777077,802.32,801.18,0.69893744]
[1754820178090,1.67777077,802.32,801.16,0.5]
[1754820178292,1.67777077,802.31,801.17,0.69898548]
[1754820178591,1.67777077,802.31,801.18,0.69898548]
[1754820178792,1.67777077,802.31,801.16,0.5]
[1754820178988,1.67777077,802.31,801.17,0.69907519]
[1754820179189,1.67777077,802.25,801.18,0.69912283]
[1754820179393,1.67777077,802.24,801.16,0.5]
[1754820179588,1.67777077,802.24,801.17,0.69930515]
[1754820179791,1.67777077,802.24,801.18,0.69930515]
[1754820179987,1.67777077,802.25,801.16,0.5]
[1754820180286,1.67777077,802.23,801.17,0.69929547]
[1754820180491,1.67777077,802.22,801.16,0.5]
[1754820180688,1.67777077,802.22,801.17,0.69938656]
[1754820180887,1.67777077,802.22,801.16,0.5]
[1754820181091,1.67777077,802.22,801.17,0.69938795]
[1754820181389,1.67777077,802.24,801.16,0.5]
[1754820181589,1.67777077,802.21,801.17,0.69946814]
[1754820181791,1.67777077,802.21,801.16,0.5]
[1754820181993,1.67777077,802.26,801.17,0.69951093]
[1754820182193,1.67777077,802.26,801.18,0.69951093]
[1754820182490,1.67777077,802.27,801.19,0.69951093]
[1754820182793,1.67777077,802.26,801.2,0.69951093]
[1754820182993,1.67777077,802.26,801.21,0.69951093]
[1754820183190,1.67777077,802.25,801.16,0.5]
[1754820183493,1.67777077,802.25,801.17,0.69982107]
[1754820183692,1.67777077,802.25,801.18,0.69982107]
[1754820183995,1.67777077,802.25,801.19,0.69982107]
[1754820184196,1.67777077,802.24,801.2,0.69982107]
[1754820184491,1.67777077,802.23,801.21,0.69982107]
[1754820184692,1.67777077,802.23,801.16,0.5]
[1754820184891,1.67777077,802.23,801.17,0.70001368]
[1754820185096,1.67777077,802.41,801.18,0.70001368]
[1754820185393,1.67777077,802.41,801.19,0.70001368]
[1754820185595,1.67777077,802.41,801.2,0.70001368]
[1754820185893,1.67777077,802.41,801.21,0.70001368]
[1754820186097,1.67777077,802.41,801.22,0.70001368]
[1754820186297,1.67777077,802.24,801.16,0.5]
[1754820186993,1.67777077,802.25,801.16,0.5]
[1754820188197,1.67777077,802.21,801.16,0.5]
[1754820188602,1.67777077,802.28,801.16,0.5]
[1754820188803,1.67777077,802.27,801.17,0.70057231]
[1754820189001,1.67777077,802.27,801.18,0.70057231]
[1754820189196,1.67777077,802.24,801.19,0.70057231]
[1754820189498,1.67777077,802.24,801.2,0.70057231]
[1754820189702,1.67777077,802.23,801.21,0.70057231]
[1754820189998,1.67777077,802.24,801.16,0.5]
[1754820190203,1.67777077,802.2,801.17,0.70090301]
[1754820190501,1.67777077,802.12,801.18,0.70090301]
[1754820190801,1.67777077,802.04,801.19,0.70090301]
[1754820190997,1.67777077,802.04,801.2,0.70090301]
[1754820191197,1.67777077,802.02,801.21,0.70090301]
[1754820191401,1.67777077,802.02,801.22,0.70090301]
[1754820191601,1.67777077,802.02,801.23,0.70090301]
[1754820191902,1.67777077,802.02,801.16,0.5]
[1754820192102,1.67777077,802.02,801.17,0.70182037]
[1754820192299,1.67777077,802.01,801.18,0.70182037]
[1754820192600,1.67777077,802.01,801.19,0.70182037]
[1754820192803,1.67777077,802.01,801.2,0.70182037]
[1754820193101,1.67777077,802.01,801.21,0.70182037]
[1754820193303,1.67777077,802.0,801.22,0.70182037]
[1754820193502,1.67777077,802.0,801.23,0.70182037]
[1754820193701,1.67777077,802.0,801.24,0.70182037]
[1754820193899,1.67777077,802.0,801.25,0.70182037]
[1754820194200,1.67777077,801.99,801.26,0.70228813]
[1754820194402,1.67777077,801.99,801.16,0.5]
[1754820194603,1.67777077,801.99,801.17,0.70229124]
[1754820194800,1.67777077,802.08,801.18,0.70229124]
[1754820195003,1.67777077,802.08,801.16,0.5]
[1754820195004,1.67777077,802.08,801.19,0.70229124]
[1754820195203,1.67777077,802.07,801.2,0.70229124]
[1754820195401,1.67777077,802.07,801.21,0.70229124]
[1754820195604,1.67777077,802.07,801.22,0.70229124]
[1754820195801,1.67777077,802.07,801.23,0.70229124]
[1754820196001,1.67777077,802.07,801.24,0.70229124]
[1754820196304,1.67777077,802.09,801.25,0.70229124]
[1754820196601,1.67777077,802.09,801.26,0.70229124]
[1754820196800,1.67777077,802.09,801.27,0.70229124]
[1754820197003,1.67777077,802.09,801.28,0.70229124]
[1754820197201,1.67777077,802.08,801.29,0.70229124]
[1754820197402,1.67777077,802.08,801.3,0.70229124]
[1754820197602,1.67777077,802.08,801.31,0.70229124]
[1754820197805,1.67777077,802.08,801.32,0.70229124]
[1754820198005,1.67777077,802.08,801.16,0.5]
[1754820198006,1.67777077,802.08,801.33,0.70229124]
[1754820198202,1.67777077,802.08,801.34,0.70229124]
[1754820198407,1.67777077,802.07,801.16,0.5]
[1754820198604,1.67777077,802.07,801.17,0.70289871]
[1754820198808,1.67777077,802.07,801.16,0.5]
[1754820198809,1.67777077,802.06,801.18,0.70289871]
[1754820199109,1.67777077,802.07,801.19,0.70289871]
[1754820199308,1.67777077,802.07,801.2,0.70289871]
[1754820199608,1.67777077,802.07,801.21,0.70289871]
[1754820199806,2.79290881,802.7,801.22,0.70289871]
[1754820199807,1.67777077,802.06,801.22,0.70289871]
[1754820200007,1.67777077,802.06,801.23,0.70289871]
[1754820200208,1.67777077,802.06,801.24,0.70289871]
[1754820200406,1.67777077,802.06,801.25,0.70289871]
[1754820200705,1.67777077,802.05,801.26,0.70289871]
[1754820200906,1.67777077,802.05,801.27,0.70289871]
[1754820201210,1.67777077,802.05,801.28,0.70289871]
[1754820201510,1.67777077,802.05,801.29,0.70289871]
[1754820201809,1.67777077,802.05,801.3,0.70289871]
[1754820202009,1.67777077,802.05,801.31,0.70289871]
[1754820202305,1.67777077,802.06,801.32,0.70289871]
[1754820202505,1.67777077,802.05,801.33,0.70289871]
[1754820202710,1.67777077,802.08,801.34,0.70289871]
[1754820203011,1.67777077,802.08,801.16,0.5]
[1754820203206,1.67777077,802.08,801.17,0.70285287]
[1754820203408,1.67777077,802.08,801.16,0.5]
[1754820203409,1.67777077,802.1,801.18,0.70285287]
[1754820203607,1.67777077,802.1,801.19,0.70285287]
[1754820203810,1.67777077,802.1,801.2,0.70285287]
[1754820204111,1.67777077,802.23,801.21,0.70285287]
[1754820204309,1.67777077,802.27,801.22,0.70285287]
[1754820204508,1.67777077,802.22,801.23,0.70285287]
[1754820204709,1.67777077,802.22,801.24,0.70285287]
[1754820205010,1.67777077,802.22,801.25,0.70285287]
[1754820205206,1.67777077,802.22,801.16,0.5]
[1754820205207,1.67777077,802.23,801.26,0.70285287]
[1754820205407,1.67777077,802.23,801.16,0.5]
[1754820205408,1.67777077,802.22,801.27,0.70285287]
[1754820205610,1.67777077,802.23,801.28,0.70285287]
[1754820205808,1.67777077,802.23,801.29,0.70285287]
[1754820206006,1.67777077,802.22,801.3,0.70285287]
[1754820206211,1.67777077,802.22,801.31,0.70285287]
[1754820206511,1.67777077,802.22,801.16,0.5]
[1754820206512,1.67777077,802.23,801.32,0.70285287]
[1754820206811,1.67777077,802.25,801.33,0.70285287]
[1754820207106,1.67777077,802.25,801.34,0.70285287]
[1754820207306,1.67777077,802.25,801.35,0.70285287]
[1754820207511,1.67777077,802.25,801.36,0.70285287]
[1754820207807,1.67777077,802.25,801.37,0.70285287]
[1754820208107,1.67777077,802.25,801.38,0.70285287]
[1754820208307,1.67777077,802.25,801.39,0.70285287]
[1754820208509,1.67777077,802.25,801.4,0.70285287]
[1754820208708,1.67777077,802.25,801.41,0.70285287]
[1754820208906,1.67777077,802.25,801.42,0.70285287]
[1754820209109,1.67777077,802.25,801.43,0.70285287]
[1754820209309,1.67777077,802.25,801.44,0.70285287]
[1754820209510,1.67777077,802.25,801.45,0.70285287]
[1754820209810,1.67777077,802.25,801.46,0.70285287]
[1754820210009,1.67777077,802.25,801.16,0.5]
[1754820210213,1.67777077,802.25,801.17,0.70221118]
[1754820210412,1.67777077,802.25,801.18,0.70221118]
[1754820210613,1.67777077,802.25,801.19,0.70221118]
[1754820210810,1.67777077,802.25,801.2,0.70221118]
[1754820211014,1.67777077,802.25,801.21,0.70221118]
[1754820211212,1.67777077,802.25,801.22,0.70221118]
[1754820211516,1.67777077,802.25,801.23,0.70221118]
[1754820211717,1.67777077,802.25,801.24,0.70221118]
[1754820211918,1.67777077,802.25,801.25,0.70221118]
[1754820212116,1.67777077,802.25,801.26,0.70221118]
[1754820212320,1.67777077,802.25,801.16,0.5]
[1754820212321,1.67777077,802.26,801.27,0.70221118]
[1754820212616,1.67777077,802.25,801.28,0.70221118]
[1754820212818,1.67777077,802.26,801.29,0.70221118]
[1754820213018,1.67777077,802.25,801.3,0.70221118]
[1754820213215,1.67777077,802.25,801.31,0.70221118]
[1754820213415,1.67777077,802.25,801.32,0.70221118]
[1754820213617,1.67777077,802.25,801.33,0.70221118]
[1754820213816,1.67777077,802.21,801.34,0.70221118]
[1754820214016,1.67777077,802.17,801.35,0.70221118]
[1754820214321,1.67777077,802.17,801.36,0.70221118]
[1754820214520,1.67777077,802.18,801.37,0.70221118]
[1754820214720,1.67777077,802.18,801.38,0.70221118]
[1754820215017,1.67777077,802.18,801.39,0.70221118]
[1754820215315,1.67777077,802.18,801.4,0.70221118]
[1754820215520,1.67777077,802.18,801.41,0.70221118]
[1754820215716,1.67777077,802.18,801.42,0.70221118]
[1754820215915,1.67777077,802.18,801.43,0.70221118]
[1754820216117,1.67777077,802.18,801.16,0.5]
[1754820216320,1.67777077,802.15,801.17,0.70217976]
[1754820216616,1.67777077,802.12,801.18,0.70217976]
[1754820216816,1.67777077,802.12,801.19,0.70217976]
[1754820217120,1.67777077,802.12,801.2,0.70217976]
[1754820217419,1.67777077,802.12,801.21,0.70217976]
[1754820217615,1.67777077,802.12,801.22,0.70217976]
[1754820217919,1.67777077,802.12,801.23,0.70217976]
[1754820218116,1.67777077,802.12,801.24,0.70217976]
[1754820218319,1.67777077,802.25,801.25,0.70217976]
[1754820218614,1.67777077,802.25,801.16,0.5]
[1754820218615,1.67777077,802.32,801.26,0.70217976]
[1754820218916,1.67777077,802.32,801.27,0.70217976]
[1754820219215,1.67777077,802.32,801.28,0.70217976]
[1754820219420,1.67777077,802.34,801.29,0.70217976]
[1754820219719,1.67777077,802.36,801.3,0.70217976]
[1754820219919,1.67777077,802.36,801.31,0.70217976]
[1754820220120,1.67777077,802.36,801.32,0.70217976]
[1754820220321,1.67777077,802.37,801.33,0.70217976]
[1754820220516,1.67777077,802.37,801.34,0.70217976]
[1754820220716,1.67777077,802.37,801.35,0.70217976]
[1754820220917,1.67777077,802.37,801.16,0.5]
[1754820220918,1.67777077,802.39,801.36,0.70217976]
[1754820221119,1.67777077,802.39,801.37,0.70217976]
[1754820221318,1.67777077,802.39,801.38,0.70217976]
[1754820221619,1.67777077,802.39,801.39,0.70217976]
[1754820221816,1.67777077,802.44,801.4,0.70217976]
[1754820222021,1.67777077,802.44,801.41,0.70217976]
[1754820222221,1.67777077,802.45,801.42,0.70217976]
[1754820222518,1.67777077,802.45,801.43,0.70217976]
[1754820222721,1.67777077,802.45,801.44,0.70217976]
[1754820223018,1.67777077,802.45,801.45,0.70217976]
[1754820223223,1.67777077,802.45,801.46,0.70217976]
[1754820223417,1.67777077,802.53,801.47,0.70217976]
[1754820223717,1.67777077,802.53,801.48,0.70217976]
[1754820223923,1.67777077,802.54,801.49,0.70217976]
[1754820224120,1.67777077,802.56,801.5,0.70217976]
[1754820224318,1.67777077,802.58,801.52,0.5]
[1754820224518,1.67777077,802.58,801.6,0.35]
[1754820225223,1.67777077,802.58,801.52,0.5]
[1754820225522,1.67777077,802.59,801.53,0.70062986]
[1754820225717,1.67777077,802.59,801.54,0.70062986]
[1754820225922,1.67777077,802.59,801.55,0.70062986]
[1754820226122,1.67777077,802.59,801.56,0.70062986]
[1754820226420,1.67777077,802.77,801.57,0.70062986]
[1754820226723,1.67777077,802.77,801.58,0.70062986]
[1754820226918,1.67777077,802.77,801.59,0.70062986]
[1754820227118,1.67777077,802.77,801.6,0.70062986]
[1754820227319,1.67777077,802.79,801.61,0.70062986]
[1754820227521,1.67777077,802.79,801.62,0.70062986]
[1754820227820,1.67777077,802.79,801.63,0.70062986]
[1754820228018,1.67777077,802.79,801.64,0.70062986]
[1754820228221,1.67777077,802.8,801.65,0.70062986]
[1754820228423,1.67777077,802.8,801.66,0.70062986]
[1754820228621,1.67777077,802.8,801.67,0.70062986]
[1754820228822,1.67777077,802.8,801.68,0.70062986]
[1754820229020,1.67777077,802.8,801.69,0.70062986]
[1754820229220,1.67777077,802.78,801.7,0.70062986]
[1754820229424,1.67777077,802.83,801.71,0.70062986]
[1754820229623,1.67777077,802.83,801.72,0.70062986]
[1754820229820,1.67777077,802.83,801.52,0.5]
[1754820229821,1.67777077,802.83,801.73,0.70062986]
[1754820230123,1.67777077,802.83,801.74,0.70062986]
[1754820230320,1.67777077,802.85,801.75,0.70062986]
[1754820230623,1.67777077,802.87,801.76,0.70062986]
[1754820230823,1.67777077,802.87,801.77,0.70062986]
[1754820231019,1.67777077,802.87,801.52,0.5]
[1754820231020,1.67777077,802.87,801.78,0.70062986]
[1754820231225,1.67777077,802.88,801.79,0.70062986]
[1754820231422,0.2166773,803.46,801.8,0.70062986]
[1754820231423,1.67777077,802.89,801.8,0.70062986]
[1754820231627,1.67777077,802.94,801.81,0.70062986]
[1754820231824,1.67777077,802.94,801.82,0.70062986]
[1754820232028,1.67777077,802.94,801.83,0.70062986]
[1754820232329,1.67777077,802.95,801.52,0.5]
[1754820232529,1.67777077,802.95,801.53,0.69969429]
[1754820232725,1.67777077,802.95,801.54,0.69969429]
[1754820232924,1.67777077,802.95,801.55,0.69969429]
[1754820233128,1.67777077,802.95,801.56,0.69969429]
[1754820233425,1.67777077,802.92,801.57,0.69969429]
[1754820233630,1.67777077,802.92,801.58,0.69969429]
[1754820233826,1.67777077,802.91,801.59,0.69969429]
[1754820234030,1.67777077,802.91,801.6,0.69969429]
[1754820234328,1.67777077,802.92,801.61,0.69969429]
[1754820234530,1.67777077,802.92,801.62,0.69969429]
[1754820234731,1.67777077,802.92,801.63,0.69969429]
[1754820235030,1.67777077,802.92,801.64,0.69969429]
[1754820235326,1.67777077,802.96,801.65,0.69969429]
[1754820235531,1.67777077,802.96,801.66,0.69969429]
[1754820235730,1.67777077,802.96,801.67,0.69969429]
[1754820235926,1.67777077,802.96,801.68,0.69969429]
[1754820236126,1.67777077,802.95,801.69,0.69969429]
[1754820236330,1.67777077,802.72,801.52,0.5]
[1754820236530,1.67777077,802.72,801.53,0.69924441]
[1754820236830,1.67777077,802.72,801.54,0.69924441]
[1754820237130,1.67777077,802.72,801.55,0.69924441]
[1754820237326,1.67777077,802.72,801.56,0.69924441]
[1754820237526,1.67777077,802.73,801.57,0.69924441]
[1754820237728,1.67777077,802.73,801.58,0.69924441]
[1754820237923,1.67777077,802.73,801.59,0.69924441]
[1754820238129,1.67777077,802.73,801.6,0.69924441]
[1754820238326,1.67777077,802.73,801.61,0.69924441]
[1754820238526,1.67777077,802.73,801.62,0.69924441]
[1754820238731,1.67777077,802.73,801.63,0.69924441]
[1754820239027,1.67777077,802.73,801.64,0.69924441]
[1754820239228,2.79290881,803.41,801.7,0.5]
[1754820239229,1.67777077,802.74,801.7,0.5]
[1754820239430,1.67777077,802.75,801.7,0.5]
[1754820240627,1.67777077,802.81,801.7,0.5]
[1754820240933,1.67777077,802.73,801.7,0.5]
[1754820242427,2.79290881,803.37,801.71,0.69894163]
[1754820242428,1.67777077,802.8,801.71,0.69894163]
[1754820242631,1.67777077,802.8,801.7,0.5]
[1754820242829,1.67777077,802.8,801.71,0.69894052]
[1754820243128,1.67777077,802.8,801.7,0.5]
[1754820243329,1.67777077,802.8,801.71,0.69880273]
[1754820243631,1.67777077,802.81,801.72,0.69880273]
[1754820243832,1.67777077,802.81,801.7,0.5]
[1754820244029,1.67777077,802.81,801.71,0.69885712]
[1754820244328,1.67777077,803.01,801.72,0.69885712]
[1754820244531,1.67777077,803.01,801.7,0.5]
[1754820244532,1.67777077,803.01,801.73,0.69885712]
[1754820244833,1.67777077,803.01,801.74,0.69885712]
[1754820245027,1.67777077,803.01,801.75,0.69885712]
[1754820245231,1.67777077,803.02,801.76,0.69885712]
[1754820245433,1.67777077,803.02,801.77,0.69885712]
[1754820245626,1.67777077,803.02,801.78,0.69885712]
[1754820245832,1.67777077,803.02,801.79,0.69885712]
[1754820246027,1.67777077,803.02,801.8,0.69885712]
[1754820246230,1.67777077,803.02,801.7,0.5]
[1754820246231,1.67777077,803.04,801.81,0.69885712]
[1754820246429,1.67777077,803.07,801.82,0.69844035]
[1754820246631,1.67777077,803.07,801.83,0.69844035]
[1754820246829,1.67777077,803.07,801.84,0.69844035]
[1754820247134,1.67777077,803.07,801.85,0.69844035]
[1754820247333,1.67777077,803.1,801.7,0.5]
[1754820247635,1.67777077,803.1,801.71,0.69836799]
[1754820247937,1.67777077,803.1,801.72,0.69836799]
[1754820248130,1.67777077,803.1,801.73,0.69836799]
[1754820248434,1.67777077,803.1,801.74,0.69836799]
[1754820248632,1.67777077,803.1,801.75,0.69836799]
[1754820248831,1.67777077,803.1,801.76,0.69836799]
[1754820249034,1.67777077,803.1,801.77,0.69836799]
[1754820249332,1.67777077,803.11,801.78,0.69836799]
[1754820249532,1.67777077,803.11,801.79,0.69836799]
[1754820249733,1.67777077,803.11,801.8,0.69836799]
[1754820249932,1.67777077,803.11,801.81,0.69836799]
[1754820250134,1.67777077,803.11,801.82,0.69836799]
[1754820250336,1.67777077,803.2,801.83,0.69836799]
[1754820250534,1.67777077,803.22,801.84,0.69836799]
[1754820250737,1.67777077,803.22,801.85,0.69836799]
[1754820250937,1.67777077,803.22,801.86,0.69836799]
[1754820251134,1.67777077,803.22,801.87,0.69812374]
[1754820251433,0.21658628,803.71,801.7,0.5]
[1754820251434,1.67777077,803.23,801.88,0.69812374]
[1754820251634,1.67777077,803.23,801.89,0.69812374]
[1754820251935,1.67777077,803.23,801.7,0.5]
[1754820252234,1.67777077,803.23,801.71,0.6979079]
[1754820252537,1.67777077,803.23,801.72,0.6979079]
[1754820252738,1.67777077,803.23,801.73,0.6979079]
[1754820252937,1.67777077,803.23,801.74,0.6979079]
[1754820253138,1.67777077,803.23,801.75,0.6979079]
[1754820253336,1.67777077,803.24,801.76,0.6979079]
[1754820253635,1.67777077,803.24,801.77,0.6979079]
[1754820253834,1.67777077,803.24,801.78,0.6979079]
[1754820254039,1.67777077,803.2,801.79,0.6979079]
[1754820254337,1.67777077,803.2,801.8,0.6979079]
[1754820254535,1.67777077,803.2,801.81,0.6979079]
[1754820254836,1.67777077,803.2,801.82,0.6979079]
[1754820255041,1.67777077,803.2,801.83,0.6979079]
[1754820255339,1.67777077,803.2,801.84,0.6979079]
[1754820255539,1.67777077,803.2,801.85,0.6979079]
[1754820255733,1.67777077,803.2,801.86,0.6979079]
[1754820255938,1.67777077,803.19,801.87,0.6979079]
[1754820256139,1.67777077,803.19,801.7,0.5]
[1754820256339,1.67777077,803.17,801.71,0.69765406]
[1754820256538,1.67777077,803.17,801.72,0.69765406]
[1754820256738,1.67777077,803.17,801.73,0.69765406]
[1754820256938,1.67777077,803.17,801.74,0.69765406]
[1754820257137,1.67777077,803.14,801.75,0.69765406]
[1754820257341,1.67777077,803.14,801.76,0.69765406]
[1754820257538,1.67777077,803.14,801.77,0.69765406]
[1754820257841,1.67777077,803.14,801.78,0.69765406]
[1754820258045,1.67777077,803.13,801.79,0.69765406]
[1754820258343,1.67777077,803.14,801.8,0.69771669]
[1754820258544,1.67777077,803.13,801.81,0.69771669]
[1754820258841,1.67777077,803.13,801.82,0.69771669]
[1754820259045,1.67777077,803.13,801.83,0.69771669]
[1754820259243,1.67777077,803.14,801.84,0.69771669]
[1754820259443,1.67777077,803.13,801.7,0.5]
[1754820259646,1.67777077,803.13,801.71,0.69768642]
[1754820259846,1.67777077,803.13,801.72,0.69768642]
[1754820260045,1.67777077,803.0,801.73,0.69768642]
[1754820260346,1.67777077,802.96,801.74,0.69768642]
[1754820260546,1.67777077,802.96,801.75,0.69768642]
[1754820260743,1.67777077,802.96,801.76,0.69768642]
[1754820260947,1.67777077,802.96,801.77,0.69768642]
[1754820261243,1.67777077,802.95,801.78,0.69768642]
[1754820261447,1.67777077,802.94,801.79,0.69768642]
[1754820261646,1.67777077,802.94,801.8,0.69768642]
[1754820261848,1.67777077,802.94,801.81,0.69768642]
[1754820262049,1.67777077,802.94,801.7,0.5]
[1754820262247,1.67777077,802.95,801.71,0.69778774]
[1754820262446,1.67777077,802.94,801.72,0.69778774]
[1754820262644,1.67777077,802.96,801.73,0.69778774]
[1754820262844,1.67777077,802.96,801.74,0.69778774]
[1754820263049,1.67777077,802.96,801.75,0.69778774]
[1754820263246,1.67777077,802.95,801.76,0.69778774]
[1754820263449,1.67777077,802.94,801.77,0.69778774]
[1754820263646,1.67777077,802.94,801.78,0.69778774]
[1754820263850,1.67777077,802.94,801.79,0.69778774]
[1754820264149,1.67777077,802.95,801.8,0.69778774]
[1754820264346,1.67777077,802.94,801.81,0.69778774]
[1754820264550,1.67777077,802.94,801.82,0.69778774]
[1754820264750,1.67777077,802.94,801.7,0.5]
[1754820264949,1.67777077,802.94,801.71,0.69812819]
[1754820265146,1.67777077,802.94,801.72,0.69812819]
[1754820265447,1.67777077,802.93,801.73,0.69812819]
[1754820265646,1.67777077,802.93,801.74,0.69812819]
[1754820265950,1.67777077,802.9,801.75,0.69812819]
[1754820266152,1.67777077,803.49,802.2,0.5]
[1754820266353,1.67777077,803.54,802.21,0.69757504]
[1754820266549,1.67777077,803.75,802.22,0.69757504]
[1754820266755,0.66946416,803.74,802.23,0.69757504]
[1754820266953,0.66946416,803.73,802.24,0.69757504]
[1754820267254,0.66946416,803.72,802.25,0.69757504]
[1754820267558,0.66946416,803.71,802.26,0.69757504]
[1754820267754,0.66946416,803.7,802.27,0.69757504]
[1754820267955,0.66946416,803.69,802.28,0.69757504]
[1754820268154,0.66946416,803.68,802.29,0.69757504]
[1754820268353,0.66946416,803.67,802.3,0.69757504]
[1754820268653,0.66946416,803.66,802.11,0.344]
[1754820268854,0.66946416,803.65,802.12,0.69759317]
[1754820269052,0.66946416,803.64,802.13,0.69759317]
[1754820269353,1.67777077,803.67,802.14,0.69759317]
[1754820269552,0.6691735,803.66,802.15,0.69759317]
[1754820269753,0.6691735,803.65,802.16,0.69759317]
[1754820269953,1.67777077,803.68,802.17,0.69759317]
[1754820270155,0.66916649,803.67,802.18,0.69759317]
[1754820270348,1.67777077,803.62,802.2,0.5]
[1754820270548,1.67777077,803.62,802.21,0.69759317]
[1754820270749,1.67777077,803.62,802.22,0.69759317]
[1754820270954,1.67777077,803.62,802.23,0.69759317]
[1754820271154,1.67777077,803.62,802.24,0.69759317]
[1754820271349,1.67777077,803.62,802.25,0.69759317]
[1754820271650,1.67777077,803.62,802.26,0.69759317]
[1754820271953,1.67777077,803.64,802.27,0.69759317]
[1754820272154,1.67777077,803.64,802.28,0.69759317]
[1754820272351,1.67777077,803.65,802.29,0.69759317]
[1754820272551,1.67777077,803.65,802.3,0.69759317]
[1754820272755,0.21645156,804.08,802.31,0.69759317]
[1754820272756,1.67777077,803.7,802.31,0.69759317]
[1754820272957,0.6688601,803.69,802.32,0.69759317]
[1754820273154,0.6688601,803.68,802.33,0.69759317]
[1754820273356,1.67777077,803.71,802.34,0.69759317]
[1754820273552,1.67777077,803.71,802.2,0.5]
[1754820273553,0.66878943,803.7,802.35,0.69759317]
[1754820273757,0.66878943,803.69,802.36,0.69759317]
[1754820274053,0.66878943,803.68,802.37,0.69759317]
[1754820274261,1.67777077,803.73,802.38,0.69759317]
[1754820274560,1.67777077,803.71,802.39,0.69759317]
[1754820274758,0.66875953,803.7,802.4,0.69759317]
[1754820275054,0.66875953,803.69,802.41,0.69759317]
[1754820275357,0.66875953,803.68,802.2,0.5]
[1754820275557,0.66875953,803.67,802.21,0.69657045]
[1754820275755,0.66875953,803.66,802.22,0.69657045]
[1754820276058,0.66875953,803.65,802.23,0.69657045]
[1754820276354,1.67777077,803.41,802.2,0.5]
[1754820278259,1.67777077,803.42,802.2,0.5]
[1754820279162,1.67777077,803.38,802.2,0.5]
[1754820279357,1.67777077,803.39,802.2,0.5]
[1754820279561,1.67777077,803.39,802.37,0.5]
[1754820279761,1.67777077,803.38,802.37,0.5]
[1754820280561,1.67777077,803.39,802.37,0.5]
[1754820281262,1.67777077,803.4,802.37,0.5]
[1754820281463,1.67777077,803.39,802.37,0.5]
[1754820282064,1.67777077,803.36,802.37,0.5]
[1754820282260,1.67777077,803.37,802.37,0.5]
[1754820283264,1.67777077,803.42,802.37,0.5]
[1754820283657,1.67777077,803.43,802.37,0.5]
[1754820283962,1.67777077,803.39,802.37,0.5]
[1754820284362,1.67777077,803.38,802.37,0.5]
[1754820284663,1.67777077,803.36,802.37,0.5]
[1754820284959,1.67777077,803.3,802.37,0.5]
[1754820285361,1.67777077,803.29,802.37,0.5]
[1754820286365,1.67777077,803.41,802.37,0.5]
[1754820287162,1.67777077,803.64,802.37,0.5]
[1754820287361,1.67777077,803.61,802.17,0.5]
[1754820287566,1.67777077,803.21,802.17,0.5]
[1754820287865,1.67777077,803.14,802.17,0.5]
[1754820288362,1.67777077,803.13,802.17,0.5]
[1754820288566,1.67777077,803.22,802.17,0.5]
[1754820289167,1.67777077,803.23,802.17,0.5]
[1754820289464,1.67777077,803.21,802.17,0.5]
[1754820290366,1.67777077,803.2,802.17,0.5]
[1754820290864,1.67777077,803.22,802.17,0.5]
[1754820291267,1.67777077,803.21,802.17,0.5]
[1754820292264,1.67777077,803.19,802.17,0.5]
[1754820293265,1.67777077,803.2,802.17,0.5]
[1754820293470,1.67777077,803.22,802.17,0.5]
[1754820294070,1.67777077,803.25,802.17,0.5]
[1754820294267,1.67777077,803.23,802.17,0.5]
[1754820294465,1.67777077,803.26,802.17,0.5]
[1754820295367,1.67777077,803.24,802.17,0.5]
[1754820296066,1.67777077,803.27,802.17,0.5]
[1754820296271,1.67777077,803.26,802.17,0.5]
[1754820296471,1.67777077,803.28,802.17,0.5]
[1754820297274,1.67777077,803.35,802.17,0.5]
[1754820297468,1.67777077,803.43,802.17,0.5]
[1754820297670,1.67777077,803.43,802.18,0.69725457]
[1754820297972,1.67777077,803.43,802.19,0.69725457]
[1754820298169,1.67777077,803.42,802.2,0.69725457]
[1754820298468,0.21642733,804.14,802.17,0.5]
[1754820298469,1.67777077,803.41,802.17,0.5]
[1754820298673,1.67777077,803.41,802.18,0.69735765]
[1754820298974,1.67777077,803.41,802.19,0.69735765]
[1754820299171,1.67777077,803.41,802.2,0.69735765]
[1754820299375,1.67777077,803.4,802.17,0.5]
[1754820299676,1.67777077,803.4,802.18,0.6971932]
[1754820299974,1.67777077,803.4,802.19,0.6971932]
[1754820300171,1.67777077,803.4,802.2,0.6971932]
[1754820300376,1.67777077,803.4,802.17,0.5]
[1754820300576,1.67777077,803.4,802.18,0.69714517]